fUSD/lending_fUSD_20250623
["ID","MTS","AMOUNT","RATE_DAILY","PERIOD"]
[367172979,1750686647807,-490.0,0.00024657,2]
[367172980,1750686647817,-490.0,0.00024657,2]
[367172981,1750686647827,-490.0,0.00024657,2]
[367172982,1750686647836,-464.39914058,0.00024657,2]
[367172983,1750686647849,-490.0,0.00024657,2]
[367172984,1750686647859,-690.38,0.00024657,2]
[367172985,1750686647869,-490.0,0.00024657,2]
[367172986,1750686647878,-490.0,0.00024657,2]
[367172987,1750686647888,-490.0,0.00024657,2]
[367172988,1750686647898,-490.0,0.00024657,2]
[367172989,1750686647907,-490.0,0.00024657,2]
[367172990,1750686647917,-490.0,0.00024657,2]
[367172991,1750686647926,-490.0,0.00024657,2]
[367172992,1750686647936,-885.18,0.00024657,2]
[367172993,1750686647947,-546.4,0.00024657,2]
[367172994,1750686647957,-625.0551366,0.00024657,2]
[367172995,1750686647966,-490.0,0.00024657,2]
[367172996,1750686647976,-490.0,0.00024657,2]
[367172997,1750686647986,-546.7,0.00024657,2]
[367172998,1750686647995,-490.0,0.00024657,2]
[367173000,1750686648005,-490.0,0.00024657,2]
[367173001,1750686648015,-490.0,0.00024657,2]
[367173002,1750686648025,-490.0,0.00024657,2]
[367173003,1750686648034,-490.0,0.00024657,2]
[367173004,1750686648044,-350.0,0.00024657,2]
[367173005,1750686648054,-490.0,0.00024657,2]
[367173006,1750686648063,-629.24,0.00024657,2]
[367173007,1750686648073,-490.0,0.00024657,2]
[367173008,1750686648082,-490.0,0.00024657,2]
[367173009,1750686648094,-490.0,0.00024657,2]
[367173010,1750686648104,-490.0,0.00024657,2]
[367173011,1750686648113,-1096.14,0.00024657,2]
[367173012,1750686648123,-188.97121459,0.00024657,2]
[367173013,1750686648133,-498.62,0.00024657,2]
[367173014,1750686648143,-493.85478082,0.00024657,2]
[367173015,1750686648153,-492.72582662,0.00024657,2]
[367173016,1750686648162,-906.37,0.00024657,2]
[367173017,1750686648173,-490.0,0.00024657,2]
[367173018,1750686648182,-490.0,0.00024657,2]
[367173019,1750686648192,-490.0,0.00024657,2]
[367173020,1750686648201,-490.0,0.00024657,2]
[367173021,1750686648211,-490.0,0.00024657,2]
[367173022,1750686648223,-634.47514803,0.00024657,2]
[367173023,1750686648233,-931.44,0.00024657,2]
[367173024,1750686648242,-518.17,0.00024657,2]
[367173025,1750686648252,-490.0,0.00024657,2]
[367173026,1750686648262,-490.0,0.00024657,2]
[367173027,1750686648271,-490.0,0.00024657,2]
[367173028,1750686648280,-490.0,0.00024657,2]
[367173029,1750686648290,-490.0,0.00024657,2]
[367173030,1750686648299,-492.41762932,0.00024657,2]
[367173031,1750686648309,-490.0,0.00024657,2]
[367173032,1750686648318,-1661.15,0.00024657,2]
[367173033,1750686648327,-490.0,0.00024657,2]
[367173034,1750686648337,-634.16591464,0.00024657,2]
[367173035,1750686648348,-490.0,0.00024657,2]
[367173036,1750686648357,-1572.27,0.00024657,2]
[367173037,1750686648367,-490.0,0.00024657,2]
[367173038,1750686648376,-1519.19,0.00024657,2]
[367173039,1750686648385,-490.0,0.00024657,2]
[367173040,1750686648395,-281.01056484,0.00024657,2]
[367173041,1750686648404,-490.0,0.00024657,2]
[367173042,1750686648414,-490.0,0.00024657,2]
[367173043,1750686648423,-1657.09,0.00024657,2]
[367173044,1750686648433,-490.0,0.00024657,2]
[367173045,1750686648442,-577.47,0.00024657,2]
[367173046,1750686648452,-490.0,0.00024657,2]
[367173047,1750686648461,-490.0,0.00024657,2]
[367173048,1750686648471,-3051.19,0.00024657,2]
[367173049,1750686648481,-214.18512239,0.00024657,2]
[367173050,1750686648491,-600.79,0.00024657,2]
[367173051,1750686648501,-1607.6,0.00024657,2]
[367173052,1750686648510,-490.0,0.00024657,2]
[367173053,1750686648519,-354.52061501,0.00024657,2]
[367173054,1750686648529,-496.69677644,0.00024657,2]
[367173055,1750686648539,-490.0,0.00024657,2]
[367173056,1750686648548,-1358.68,0.00024657,2]
[367173057,1750686648557,-2374.51,0.00024657,2]
[367173058,1750686648567,-1256.78,0.00024657,2]
[367173059,1750686648576,-500.0,0.00024657,2]
[367173060,1750686648585,-490.0,0.00024657,2]
[367173061,1750686648603,-490.0,0.00024657,2]
[367173062,1750686648612,-822.55,0.00024657,2]
[367173063,1750686648622,-497.16471244,0.00024657,2]
[367173064,1750686648631,-490.0,0.00024657,2]
[367173065,1750686648641,-490.0,0.00024657,2]
[367173066,1750686648650,-356.31865341,0.00024657,2]
[367173067,1750686648662,-661.34,0.00024657,2]
[367173068,1750686648672,-490.0,0.00024657,2]
[367173069,1750686648681,-490.0,0.00024657,2]
[367173070,1750686648690,-490.0,0.00024657,2]
[367173071,1750686648700,-490.0,0.00024657,2]
[367173072,1750686648709,-490.0,0.00024657,2]
[367173073,1750686648718,-490.0,0.00024657,2]
[367173074,1750686648731,-490.73225304,0.00024657,2]
[367173076,1750686648741,-490.0,0.00024657,2]
[367173079,1750686648751,-1001.57,0.00024657,2]
[367173080,1750686648760,-490.0,0.00024657,2]
[367173082,1750686648770,-490.0,0.00024657,2]
[367173084,1750686648780,-671.86,0.00024657,2]
[367173086,1750686648790,-482.90497544,0.00024657,2]
[367173087,1750686648800,-490.0,0.00024657,2]
[367173088,1750686648809,-643.18,0.00024657,2]
[367173089,1750686648819,-490.0,0.00024657,2]
[367173090,1750686648829,-990.55,0.00024657,2]
[367173091,1750686648842,-1282.61,0.00024657,2]
[367173092,1750686648852,-490.0,0.00024657,2]
[367173093,1750686648862,-544.11,0.00024657,2]
[367173094,1750686648874,-490.0,0.00024657,2]
[367173095,1750686648883,-490.0,0.00024657,2]
[367173096,1750686648893,-490.0,0.00024657,2]
[367173097,1750686648903,-490.0,0.00024657,2]
[367173098,1750686648913,-422.18960738,0.00024657,2]
[367173099,1750686648922,-490.0,0.00024657,2]
[367173100,1750686648931,-1532.87,0.00024657,2]
[367173101,1750686648941,-490.0,0.00024657,2]
[367173102,1750686648951,-490.0,0.00024657,2]
[367173103,1750686648960,-490.0,0.00024657,2]
[367173104,1750686648970,-490.0,0.00024657,2]
[367173105,1750686648980,-982.68,0.00024657,2]
[367173106,1750686648990,-490.0,0.00024657,2]
[367173107,1750686649000,-1423.1,0.00024657,2]
[367173108,1750686649010,-490.0,0.00024657,2]
[367173109,1750686649019,-490.0,0.00024657,2]
[367173110,1750686649029,-490.0,0.00024657,2]
[367173111,1750686649039,-491.36691512,0.00024657,2]
[367173112,1750686649049,-490.0,0.00024657,2]
[367173113,1750686649059,-497.75667788,0.00024657,2]
[367173114,1750686649069,-490.0,0.00024657,2]
[367173115,1750686649079,-597.46,0.00024657,2]
[367173116,1750686649092,-1455.04,0.00024657,2]
[367173117,1750686649101,-611.52,0.00024657,2]
[367173118,1750686649110,-491.68815622,0.00024657,2]
[367173119,1750686649120,-950.61,0.00024657,2]
[367173120,1750686649129,-490.0,0.00024657,2]
[367173121,1750686649139,-1016.42,0.00024657,2]
[367173122,1750686649148,-490.0,0.00024657,2]
[367173123,1750686649157,-1360.4,0.00024657,2]
[367173124,1750686649167,-490.0,0.00024657,2]
[367173125,1750686649177,-490.0,0.00024657,2]
[367173126,1750686649187,-763.27,0.00024657,2]
[367173127,1750686649197,-490.0,0.00024657,2]
[367173128,1750686649206,-490.0,0.00024657,2]
[367173129,1750686649217,-490.0,0.00024657,2]
[367173130,1750686649226,-490.0,0.00024657,2]
[367173131,1750686649236,-490.0,0.00024657,2]
[367173132,1750686649246,-607.94,0.00024657,2]
[367173133,1750686649255,-490.0,0.00024657,2]
[367173134,1750686649265,-497.38249867,0.00024657,2]
[367173135,1750686649277,-490.0,0.00024657,2]
[367173136,1750686649288,-490.0,0.00024657,2]
[367173137,1750686649297,-490.0,0.00024657,2]
[367173138,1750686649307,-519.96,0.00024657,2]
[367173139,1750686649317,-490.0,0.00024657,2]
[367173140,1750686649327,-664.89,0.00024657,2]
[367173141,1750686649337,-1342.1,0.00024657,2]
[367173142,1750686649348,-490.0,0.00024657,2]
[367173143,1750686649359,-490.0,0.00024657,2]
[367173144,1750686649369,-835.71,0.00024657,2]
[367173145,1750686649379,-490.0,0.00024657,2]
[367173146,1750686649389,-829.21,0.00024657,2]
[367173147,1750686649398,-490.0,0.00024657,2]
[367173148,1750686649408,-1298.57,0.00024657,2]
[367173149,1750686649418,-490.0,0.00024657,2]
[367173150,1750686649680,-1948.9,0.00024657,2]
[367173151,1750686649690,-490.0,0.00024657,2]
[367173152,1750686649699,-167.76132446,0.00024657,2]
[367173153,1750686649709,-490.0,0.00024657,2]
[367173154,1750686649719,-610.16,0.00024657,2]
[367173155,1750686649729,-1106.07,0.00024657,2]
[367173156,1750686649738,-490.0,0.00024657,2]
[367173157,1750686649748,-490.0,0.00024657,2]
[367173158,1750686649758,-1286.44,0.00024657,2]
[367173159,1750686649768,-490.0,0.00024657,2]
[367173160,1750686649778,-490.0,0.00024657,2]
[367173161,1750686649789,-490.0,0.00024657,2]
[367173162,1750686649799,-904.02,0.00024657,2]
[367173163,1750686649809,-500.0,0.00024657,2]
[367173164,1750686649819,-490.0,0.00024657,2]
[367173165,1750686649830,-500.0,0.00024657,2]
[367173166,1750686649841,-1296.59,0.00024657,2]
[367173167,1750686649851,-500.0,0.00024657,2]
[367173168,1750686649860,-500.0,0.00024657,2]
[367173169,1750686649870,-500.0,0.00024657,2]
[367173170,1750686649880,-500.0,0.00024657,2]
[367173171,1750686649890,-500.0,0.00024657,2]
[367173172,1750686649899,-500.0,0.00024657,2]
[367173173,1750686649909,-500.0,0.00024657,2]
[367173174,1750686649919,-500.0,0.00024657,2]
[367173175,1750686649929,-500.0,0.00024657,2]
[367173176,1750686649939,-490.0,0.00024657,2]
[367173177,1750686649949,-490.0,0.00024657,2]
[367173178,1750686649958,-490.0,0.00024657,2]
[367173179,1750686649969,-1473.2,0.00024657,2]
[367173180,1750686649979,-490.0,0.00024657,2]
[367173181,1750686649988,-1635.26,0.00024657,2]
[367173182,1750686649998,-672.47,0.00024657,2]
[367173183,1750686650008,-1802.41,0.00024657,2]
[367173184,1750686650017,-860.18,0.00024657,2]
[367173185,1750686650027,-1857.42,0.00024657,2]
[367173186,1750686650037,-490.0,0.00024657,2]
[367173187,1750686650046,-1222.23,0.00024657,2]
[367173188,1750686650056,-490.0,0.00024657,2]
[367173189,1750686650065,-1569.51,0.00024657,2]
[367173190,1750686650075,-490.0,0.00024657,2]
[367173191,1750686650085,-490.0,0.00024657,2]
[367173192,1750686650095,-490.0,0.00024657,2]
[367173193,1750686650104,-490.0,0.00024657,2]
[367173194,1750686650115,-490.0,0.00024657,2]
[367173195,1750686650124,-624.96,0.00024657,2]
[367173196,1750686650134,-500.0,0.00024657,2]
[367173197,1750686650144,-500.0,0.00024657,2]
[367173198,1750686650153,-500.0,0.00024657,2]
[367173199,1750686650163,-490.0,0.00024657,2]
[367173200,1750686650173,-500.0,0.00024657,2]
[367173201,1750686650183,-500.0,0.00024657,2]
[367173202,1750686650193,-500.0,0.00024657,2]
[367173203,1750686650203,-812.51,0.00024657,2]
[367173204,1750686650213,-500.0,0.00024657,2]
[367173205,1750686650222,-500.0,0.00024657,2]
[367173206,1750686650232,-859.32,0.00024657,2]
[367173207,1750686650241,-1136.78,0.00024657,2]
[367173208,1750686650251,-788.28,0.00024657,2]
[367173209,1750686650261,-290.1222691,0.00024657,2]
[367173210,1750686650270,-871.75,0.00024657,2]
[367173211,1750686650280,-490.0,0.00024657,2]
[367173212,1750686650290,-1274.38,0.00024657,2]
[367173213,1750686650299,-490.0,0.00024657,2]
[367173214,1750686650309,-490.0,0.00024657,2]
[367173215,1750686650319,-1101.08,0.00024657,2]
[367173216,1750686650329,-490.0,0.00024657,2]
[367173217,1750686650340,-490.0,0.00024657,2]
[367173218,1750686650353,-490.0,0.00024657,2]
[367173219,1750686650363,-1407.39,0.00024657,2]
[367173220,1750686650373,-490.0,0.00024657,2]
[367173221,1750686650382,-944.54,0.00024657,2]
[367173222,1750686650392,-490.0,0.00024657,2]
[367173223,1750686650402,-490.0,0.00024657,2]
[367173224,1750686650411,-490.0,0.00024657,2]
[367173225,1750686650420,-490.0,0.00024657,2]
[367173226,1750686650430,-2112.76,0.00024657,2]
[367173227,1750686650439,-970.17,0.00024657,2]
[367173228,1750686650449,-490.0,0.00024657,2]
[367173229,1750686650459,-490.0,0.00024657,2]
[367173230,1750686650469,-490.0,0.00024657,2]
[367173231,1750686650478,-1664.26,0.00024657,2]
[367173232,1750686650488,-512.66,0.00024657,2]
[367173233,1750686650497,-490.0,0.00024657,2]
[367173234,1750686650508,-490.0,0.00024657,2]
[367173235,1750686650518,-503.46150839,0.00024657,2]
[367173236,1750686650527,-490.0,0.00024657,2]
[367173237,1750686650537,-1494.03,0.00024657,2]
[367173238,1750686650547,-1600.65,0.00024657,2]
[367173239,1750686650556,-490.0,0.00024657,2]
[367173240,1750686650566,-490.0,0.00024657,2]
[367173241,1750686650575,-886.49,0.00024657,2]
[367173242,1750686650585,-2419.7,0.00024657,2]
[367173243,1750686650598,-490.0,0.00024657,2]
[367173244,1750686650609,-490.0,0.00024657,2]
[367173245,1750686650618,-490.0,0.00024657,2]
[367173246,1750686650627,-490.0,0.00024657,2]
[367173247,1750686650636,-490.0,0.00024657,2]
[367173248,1750686650647,-614.7,0.00024657,2]
[367173249,1750686650656,-969.12,0.00024657,2]
[367173250,1750686650666,-490.0,0.00024657,2]
[367173251,1750686650675,-433.87928981,0.00024657,2]
[367173252,1750686650685,-582.17,0.00024657,2]
[367173253,1750686650696,-1736.19,0.00024657,2]
[367173254,1750686650706,-283.61802043,0.00024657,2]
[367173255,1750686650716,-870.79,0.00024657,2]
[367173256,1750686650726,-837.24,0.00024657,2]
[367173257,1750686650735,-490.0,0.00024657,2]
[367173258,1750686650746,-1315.11,0.00024657,2]
[367173259,1750686650755,-490.0,0.00024657,2]
[367173260,1750686650765,-490.0,0.00024657,2]
[367173261,1750686650774,-490.0,0.00024657,2]
[367173262,1750686650785,-1173.82,0.00024657,2]
[367173263,1750686650795,-490.0,0.00024657,2]
[367173264,1750686650804,-1848.15,0.00024657,2]
[367173265,1750686650814,-735.9,0.00024657,2]
[367173266,1750686650823,-800.54,0.00024657,2]
[367173267,1750686650833,-490.0,0.00024657,2]
[367173268,1750686650846,-490.0,0.00024657,2]
[367173269,1750686650856,-550.0,0.00024657,2]
[367173270,1750686650866,-1404.89,0.00024657,2]
[367173271,1750686650876,-1662.52,0.00024657,2]
[367173272,1750686650886,-348.05324814,0.00024657,2]
[367173273,1750686650896,-490.0,0.00024657,2]
[367173274,1750686650906,-490.0,0.00024657,2]
[367173275,1750686650915,-673.28,0.00024657,2]
[367173276,1750686650926,-954.44,0.00024657,2]
[367173277,1750686650935,-490.0,0.00024657,2]
[367173278,1750686650945,-490.0,0.00024657,2]
[367173279,1750686650954,-545.15,0.00024657,2]
[367173280,1750686650964,-490.0,0.00024657,2]
[367173281,1750686650974,-490.0,0.00024657,2]
[367173282,1750686650984,-723.27,0.00024657,2]
[367173283,1750686650994,-159.85601954,0.00024657,2]
[367173284,1750686651003,-490.0,0.00024657,2]
[367173285,1750686651013,-490.0,0.00024657,2]
[367173286,1750686651024,-490.0,0.00024657,2]
[367173287,1750686651033,-490.0,0.00024657,2]
[367173288,1750686651043,-492.86227044,0.00024657,2]
[367173289,1750686651053,-490.0,0.00024657,2]
[367173290,1750686651062,-490.0,0.00024657,2]
[367173291,1750686651072,-490.0,0.00024657,2]
[367173292,1750686651082,-490.0,0.00024657,2]
[367173293,1750686651094,-632.94940875,0.00024657,2]
[367173294,1750686651104,-490.0,0.00024657,2]
[367173295,1750686651113,-1182.43,0.00024657,2]
[367173296,1750686651123,-490.0,0.00024657,2]
[367173297,1750686651132,-490.0,0.00024657,2]
[367173298,1750686651143,-1128.91,0.00024657,2]
[367173299,1750686651152,-490.0,0.00024657,2]
[367173300,1750686651162,-490.0,0.00024657,2]
[367173301,1750686651172,-818.65,0.00024657,2]
[367173302,1750686651182,-490.0,0.00024657,2]
[367173303,1750686651192,-490.0,0.00024657,2]
[367173304,1750686651202,-500.0,0.00024657,2]
[367173305,1750686651211,-490.0,0.00024657,2]
[367173306,1750686651221,-500.0,0.00024657,2]
[367173307,1750686651231,-490.0,0.00024657,2]
[367173308,1750686651241,-500.0,0.00024657,2]
[367173309,1750686651251,-1861.05,0.00024657,2]
[367173310,1750686651261,-500.0,0.00024657,2]
[367173311,1750686651270,-500.0,0.00024657,2]
[367173312,1750686651284,-500.0,0.00024657,2]
[367173313,1750686651294,-490.0,0.00024657,2]
[367173314,1750686651303,-500.0,0.00024657,2]
[367173315,1750686651313,-500.0,0.00024657,2]
[367173316,1750686651323,-500.0,0.00024657,2]
[367173317,1750686651333,-1282.2,0.00024657,2]
[367173318,1750686651346,-500.0,0.00024657,2]
[367173319,1750686651356,-609.19,0.00024657,2]
[367173320,1750686651366,-500.0,0.00024657,2]
[367173321,1750686651378,-500.0,0.00024657,2]
[367173322,1750686651387,-611.76,0.00024657,2]
[367173323,1750686651397,-856.23,0.00024657,2]
[367173324,1750686651406,-490.0,0.00024657,2]
[367173325,1750686651416,-490.0,0.00024657,2]
[367173326,1750686651425,-490.0,0.00024657,2]
[367173327,1750686651435,-2270.68,0.00024657,2]
[367173328,1750686651444,-490.0,0.00024657,2]
[367173329,1750686651454,-490.0,0.00024657,2]
[367173330,1750686651464,-490.0,0.00024657,2]
[367173331,1750686651473,-1680.63,0.00024657,2]
[367173332,1750686651483,-523.12,0.00024657,2]
[367173333,1750686651493,-490.0,0.00024657,2]
[367173334,1750686651503,-974.32,0.00024657,2]
[367173335,1750686651513,-490.0,0.00024657,2]
[367173336,1750686651522,-490.0,0.00024657,2]
[367173337,1750686651532,-598.96,0.00024657,2]
[367173338,1750686651542,-2445.39,0.00024657,2]
[367173339,1750686651552,-490.0,0.00024657,2]
[367173340,1750686651561,-490.0,0.00024657,2]
[367173341,1750686651572,-490.0,0.00024657,2]
[367173342,1750686651581,-490.0,0.00024657,2]
[367173343,1750686651593,-989.77,0.00024657,2]
[367173344,1750686651604,-1933.35,0.00024657,2]
[367173345,1750686651614,-1111.14,0.00024657,2]
[367173346,1750686651624,-1516.59,0.00024657,2]
[367173347,1750686651634,-490.0,0.00024657,2]
[367173348,1750686651644,-228.0540974,0.00024657,2]
[367173349,1750686651654,-490.0,0.00024657,2]
[367173350,1750686651664,-588.0,0.00024657,2]
[367173351,1750686651674,-490.0,0.00024657,2]
[367173352,1750686651684,-490.0,0.00024657,2]
[367173353,1750686651694,-896.05,0.00024657,2]
[367173354,1750686651704,-490.0,0.00024657,2]
[367173355,1750686651713,-490.0,0.00024657,2]
[367173356,1750686651723,-213.12774622,0.00024657,2]
[367173357,1750686651733,-490.0,0.00024657,2]
[367173358,1750686651742,-490.0,0.00024657,2]
[367173359,1750686651752,-490.0,0.00024657,2]
[367173360,1750686651762,-490.0,0.00024657,2]
[367173361,1750686651772,-490.0,0.00024657,2]
[367173362,1750686651781,-490.0,0.00024657,2]
[367173363,1750686651791,-490.0,0.00024657,2]
[367173364,1750686651801,-490.0,0.00024657,2]
[367173365,1750686651811,-874.56,0.00024657,2]
[367173366,1750686651821,-490.0,0.00024657,2]
[367173367,1750686651831,-609.8,0.00024657,2]
[367173368,1750686651844,-599.29,0.00024657,2]
[367173369,1750686651855,-300.0,0.00024657,2]
[367173370,1750686651865,-973.14,0.00024657,2]
[367173371,1750686651874,-2143.6,0.00024657,2]
[367173372,1750686651885,-490.0,0.00024657,2]
[367173373,1750686651894,-533.69,0.00024657,2]
[367173374,1750686651904,-807.91,0.00024657,2]
[367173375,1750686651914,-490.0,0.00024657,2]
[367173376,1750686651924,-490.0,0.00024657,2]
[367173377,1750686651934,-354.91752311,0.00024657,2]
[367173378,1750686651944,-490.0,0.00024657,2]
[367173379,1750686651954,-1485.0,0.00024657,2]
[367173380,1750686651964,-2597.96,0.00024657,2]
[367173381,1750686651974,-490.0,0.00024657,2]
[367173382,1750686651983,-211.16652219,0.00024657,2]
[367173383,1750686651993,-490.0,0.00024657,2]
[367173384,1750686652003,-1576.15,0.00024657,2]
[367173385,1750686652013,-490.0,0.00024657,2]
[367173386,1750686652022,-1044.3,0.00024657,2]
[367173387,1750686652032,-221.38341478,0.00024657,2]
[367173388,1750686652043,-607.41,0.00024657,2]
[367173389,1750686652052,-490.0,0.00024657,2]
[367173390,1750686652062,-490.0,0.00024657,2]
[367173391,1750686652159,-490.0,0.00024657,2]
[367173392,1750686652169,-490.0,0.00024657,2]
[367173393,1750686652179,-490.0,0.00024657,2]
[367173394,1750686652189,-490.0,0.00024657,2]
[367173395,1750686652199,-487.58746529,0.00024657,2]
[367173396,1750686652208,-1574.13,0.00024657,2]
[367173397,1750686652217,-490.0,0.00024657,2]
[367173398,1750686652227,-490.0,0.00024657,2]
[367173399,1750686652236,-1512.5,0.00024657,2]
[367173400,1750686652246,-490.0,0.00024657,2]
[367173401,1750686652255,-490.0,0.00024657,2]
[367173402,1750686652266,-500.0,0.00024657,2]
[367173403,1750686652276,-500.0,0.00024657,2]
[367173404,1750686652285,-490.0,0.00024657,2]
[367173405,1750686652295,-490.0,0.00024657,2]
[367173406,1750686652305,-490.0,0.00024657,2]
[367173407,1750686652315,-2162.38,0.00024657,2]
[367173408,1750686652324,-490.0,0.00024657,2]
[367173409,1750686652335,-490.0,0.00024657,2]
[367173410,1750686652351,-490.0,0.00024657,2]
[367173411,1750686652360,-486.70359252,0.00024657,2]
[367173412,1750686652370,-1079.97,0.00024657,2]
[367173413,1750686652380,-490.0,0.00024657,2]
[367173414,1750686652389,-811.27,0.00024657,2]
[367173415,1750686652399,-490.0,0.00024657,2]
[367173416,1750686652408,-490.0,0.00024657,2]
[367173417,1750686652417,-490.0,0.00024657,2]
[367173418,1750686652427,-594.61,0.00024657,2]
[367173419,1750686652436,-490.0,0.00024657,2]
[367173420,1750686652446,-490.0,0.00024657,2]
[367173421,1750686652455,-1685.12,0.00024657,2]
[367173422,1750686652464,-490.0,0.00024657,2]
[367173423,1750686652474,-490.0,0.00024657,2]
[367173424,1750686652483,-2196.0,0.00024657,2]
[367173425,1750686652492,-534.55,0.00024657,2]
[367173426,1750686652502,-490.0,0.00024657,2]
[367173427,1750686652511,-490.0,0.00024657,2]
[367173428,1750686652520,-490.0,0.00024657,2]
[367173429,1750686652530,-490.0,0.00024657,2]
[367173430,1750686652539,-490.0,0.00024657,2]
[367173431,1750686652548,-490.0,0.00024657,2]
[367173432,1750686652558,-487.38235985,0.00024657,2]
[367173433,1750686652567,-821.53,0.00024657,2]
[367173434,1750686652576,-490.0,0.00024657,2]
[367173435,1750686652585,-490.0,0.00024657,2]
[367173436,1750686652597,-1253.42,0.00024657,2]
[367173437,1750686652606,-490.0,0.00024657,2]
[367173438,1750686652615,-490.0,0.00024657,2]
[367173439,1750686652624,-490.0,0.00024657,2]
[367173440,1750686652633,-491.7063151,0.00024657,2]
[367173441,1750686652643,-490.0,0.00024657,2]
[367173442,1750686652653,-490.0,0.00024657,2]
[367173443,1750686652662,-490.0,0.00024657,2]
[367173444,1750686652671,-490.0,0.00024657,2]
[367173445,1750686652681,-490.0,0.00024657,2]
[367173446,1750686652690,-1200.19,0.00024657,2]
[367173447,1750686652699,-490.0,0.00024657,2]
[367173448,1750686652708,-1384.58,0.00024657,2]
[367173449,1750686652717,-490.0,0.00024657,2]
[367173450,1750686652726,-490.0,0.00024657,2]
[367173451,1750686652735,-1493.99,0.00024657,2]
[367173452,1750686652745,-626.77,0.00024657,2]
[367173453,1750686652755,-490.0,0.00024657,2]
[367173454,1750686652764,-1796.35,0.00024657,2]
[367173455,1750686652773,-490.0,0.00024657,2]
[367173456,1750686652783,-490.0,0.00024657,2]
[367173457,1750686652793,-490.0,0.00024657,2]
[367173458,1750686652803,-356.85080439,0.00024657,2]
[367173459,1750686652813,-1572.07,0.00024657,2]
[367173460,1750686652822,-490.0,0.00024657,2]
[367173461,1750686652832,-1673.49,0.00024657,2]
[367173462,1750686652844,-490.0,0.00024657,2]
[367173463,1750686652857,-733.4,0.00024657,2]
[367173464,1750686652866,-490.0,0.00024657,2]
[367173465,1750686652876,-1246.6,0.00024657,2]
[367173466,1750686652887,-490.0,0.00024657,2]
[367173467,1750686652896,-490.0,0.00024657,2]
[367173468,1750686652905,-490.0,0.00024657,2]
[367173469,1750686652915,-490.0,0.00024657,2]
[367173470,1750686652924,-490.0,0.00024657,2]
[367173471,1750686652934,-490.0,0.00024657,2]
[367173472,1750686652943,-211.82371384,0.00024657,2]
[367173473,1750686652953,-643.76,0.00024657,2]
[367173474,1750686652962,-267.83495167,0.00024657,2]
[367173475,1750686652972,-490.0,0.00024657,2]
[367173476,1750686652981,-490.0,0.00024657,2]
[367173477,1750686652991,-490.0,0.00024657,2]
[367173478,1750686653000,-1432.33,0.00024657,2]
[367173479,1750686653009,-490.0,0.00024657,2]
[367173480,1750686653019,-490.0,0.00024657,2]
[367173481,1750686653028,-490.0,0.00024657,2]
[367173482,1750686653038,-490.0,0.00024657,2]
[367173483,1750686653047,-490.0,0.00024657,2]
[367173484,1750686653056,-2052.49,0.00024657,2]
[367173485,1750686653065,-686.38,0.00024657,2]